fUSD/lending_fUSD_20260408
["ID","MTS","AMOUNT","RATE_DAILY","PERIOD"]
[420008467,1775609432035,-14303.26635639,0.0001349,2]
[420008471,1775609432070,-36577.30105851,0.0001349,2]
[420008473,1775609432080,-179.03,0.00013531,2]
[420008475,1775609432091,-151.0,0.00013582,2]
[420008477,1775609432101,-151.0,0.00013582,2]
[420008479,1775609432112,-151.0,0.00013582,2]
[420008481,1775609432122,-151.0,0.00013582,2]
[420008484,1775609432133,-151.0,0.00013582,2]
[420008486,1775609432143,-151.0,0.00013582,2]
[420008489,1775609432153,-151.0,0.00013582,2]
[420008492,1775609432163,-290.03793891,0.00013582,2]
[420008495,1775609432173,-150.0,0.000136,2]
[420008497,1775609432184,-2708.87802172,0.00013688,2]
[420008499,1775609432194,-2138.0,0.00013699,2]
[420008501,1775609432205,-1129.64,0.00013699,2]
[420008503,1775609432215,-717.21,0.00013699,2]
[420008505,1775609432228,-153.5467299,0.00013699,2]
[420008514,1775609432753,-500.0,0.00013786,2]
[420008515,1775609432798,-500.0,0.00013788,2]
[420008516,1775609432808,-500.0,0.00013788,2]
[420008517,1775609432818,-500.0,0.00013788,2]
[420008518,1775609432828,-626.83,0.00013788,2]
[420008519,1775609432838,-500.0,0.00013788,2]
[420008520,1775609432848,-500.0,0.00013788,2]
[420008521,1775609432858,-500.0,0.00013788,2]
[420008522,1775609432868,-500.0,0.00013788,2]
[420008523,1775609432878,-500.0,0.00013788,2]
[420008524,1775609432888,-500.0,0.00013788,2]
[420008525,1775609432897,-500.0,0.00013788,2]
[420008526,1775609432907,-500.0,0.00013788,2]
[420008527,1775609432917,-626.83,0.00013788,2]
[420008528,1775609432927,-500.0,0.00013788,2]
[420008529,1775609432936,-500.0,0.00013788,2]
[420008530,1775609432946,-330.605968,0.00013788,2]
[420008531,1775609432956,-260.96,0.00013788,2]
[420008532,1775609432966,-500.0,0.00013788,2]
[420008533,1775609432976,-500.0,0.00013788,2]
[420008534,1775609432986,-2708.87802172,0.00013934,2]
[420008535,1775609432997,-279.026,0.00013944,2]
[420008536,1775609433007,-255.0,0.00014122,2]
[420008537,1775609433018,-1680.0,0.00014154,2]
[420008538,1775609433029,-2708.87802172,0.0001418,2]
[420008539,1775609433039,-500.0,0.00014329,2]
[420008540,1775609433049,-101.03316453,0.00014345,2]
[420008541,1775609433062,-309.20643989,0.00014345,2]
[420008542,1775609433133,-500.0,0.00013786,2]
[420008543,1775609433143,-500.0,0.00013786,2]
[420008544,1775609433154,-1442.18039558,0.00014345,2]
[420008545,1775609433164,-1129.64,0.00014384,2]
[420008546,1775609433174,-150.0,0.000144,2]
[420008547,1775609433185,-150.0,0.000144,2]
[420008548,1775609433194,-150.0,0.000144,2]
[420008549,1775609433204,-150.0,0.000144,2]
[420008550,1775609433215,-150.0,0.000144,2]
[420008551,1775609433225,-150.0,0.000144,2]
[420008552,1775609433234,-2708.87802172,0.00014425,2]
[420008553,1775609433246,-506.0,0.00014494,3]
[420008554,1775609433256,-21297.91479489,0.00014528,2]
[420008555,1775609433269,-1130.87856688,0.00014528,2]
[420008557,1775609437797,-21241.1128,0.00012917,2]
[420008558,1775609437807,-161.1069461,0.00013786,2]
[420008559,1775609437817,-10595.93163823,0.00014528,2]
[420008560,1775609437827,-1000.0,0.00014528,2]
[420008561,1775609437837,-250.0,0.0001454,2]
[420008562,1775609437848,-179.03,0.00014571,2]
[420008563,1775609437858,-337.01816193,0.00014627,2]
[420008564,1775609437868,-500.0,0.00014627,2]
[420008565,1775609437878,-500.0,0.00014627,2]
[420008566,1775609437888,-500.0,0.00014627,2]
[420008567,1775609437898,-17936.14919784,0.00014628,2]
[420008568,1775609437910,-500.0,0.00014628,2]
[420008569,1775609437955,-4575.628699,0.00014628,2]
[420008686,1775609439442,-4509.0,0.00014628,2]
[420008688,1775609439453,-2720.26731598,0.00014628,2]
[420008690,1775609439466,-449.90067595,0.00014628,2]
[420008693,1775609439479,-1649.04016579,0.00014628,2]
[420008695,1775609439491,-995.02567085,0.00014628,2]
[420008737,1775609440111,-351.34995893,0.00014628,2]
[420008745,1775609440180,-6822.19151201,0.00014628,2]
[420008810,1775609440809,-21159.77680365,0.00014628,2]
[420008812,1775609440819,-2448.77709609,0.00014671,2]
[420008814,1775609440831,-260.10092563,0.00014671,2]
[420008816,1775609440841,-167.703,0.000149,2]
[420008819,1775609440851,-152.92916614,0.000149,2]
[420008821,1775609440861,-43.31078063,0.000149,2]
[420008823,1775609440873,-109.61838551,0.000149,2]
[420008825,1775609440882,-152.92916614,0.000149,2]
[420008827,1775609440893,-2708.87802172,0.00014917,2]
[420008829,1775609440903,-1571.0,0.00015009,2]
[420008831,1775609440912,-1129.64,0.00015068,2]
[420008833,1775609440922,-500.0,0.00015068,2]
[420008835,1775609440931,-2708.87802172,0.00015163,2]
[420008837,1775609440940,-5771.85204374,0.00015164,2]
[420008908,1775609442878,-116.14795626,0.00015164,2]
[420008909,1775609442888,-569.63968499,0.00015198,2]
[420008910,1775609443235,-8.56955809,0.00015198,2]
[420008911,1775609443245,-500.0,0.00015198,2]
[420008912,1775609443256,-623.58710448,0.00015198,2]
[420008913,1775609443267,-1235.18214925,0.00015198,2]
[420008914,1775609443278,-200.0,0.00015198,2]
[420008915,1775609443288,-52.58339328,0.00015198,2]
[420008916,1775609443308,-447.41660672,0.00015198,2]
[420008917,1775609443319,-500.0,0.00015198,2]
[420008918,1775609443329,-500.0,0.00015198,2]
[420008919,1775609443339,-500.0,0.00015198,2]
[420008920,1775609443350,-500.0,0.00015198,2]
[420008921,1775609443360,-500.0,0.00015198,2]
[420008922,1775609443371,-500.0,0.00015198,2]
[420008923,1775609443381,-500.0,0.00015198,2]
[420008924,1775609443391,-500.0,0.00015198,2]
[420008925,1775609443402,-500.0,0.00015198,2]
[420008926,1775609443412,-436.47330082,0.00015198,2]
[420008927,1775609443423,-500.0,0.00015198,2]
[420008928,1775609443433,-500.0,0.00015198,2]
[420008929,1775609443443,-500.0,0.00015198,2]
[420008930,1775609443454,-500.0,0.00015198,2]
[420008931,1775609443465,-500.0,0.00015198,2]
[420008932,1775609443475,-743.50770149,0.00015198,2]
[420008934,1775609443485,-9412.32168148,0.00015199,2]
[420008936,1775609443495,-972.35200174,0.00015205,2]
[420009009,1775609446144,-9027.64799826,0.00015205,2]
[420009010,1775609446153,-160.0,0.00015225,2]
[420009011,1775609446163,-5888.0,0.00015232,2]
[420009012,1775609446174,-500.0,0.00015253,2]
[420009013,1775609446184,-5888.0,0.00015285,2]
[420009014,1775609446194,-5888.0,0.0001529,2]
[420009015,1775609446204,-445.18938606,0.00015303,2]
[420009016,1775609446214,-474.66,0.00015303,2]
[420009017,1775609446224,-500.0,0.00015308,2]
[420009018,1775609446234,-433.0,0.00015319,2]
[420009020,1775609446245,-500.0,0.00015363,2]
[420009022,1775609446256,-5888.0,0.00015381,2]
[420009024,1775609446266,-351.842747,0.00015386,7]
[420009026,1775609446276,-600.0,0.000154,5]
[420009028,1775609446286,-2708.87802172,0.00015408,2]
[420009030,1775609446296,-500.0,0.00015418,2]
[420009032,1775609446306,-160.0,0.00015431,2]
[420009034,1775609446316,-166.059547,0.00015431,2]
[420009036,1775609446326,-172.119094,0.00015431,2]
[420009038,1775609446336,-500.0,0.00015473,2]
[420009040,1775609446346,-183.346126,0.00015484,7]
[420009042,1775609446356,-448.415388,0.00015484,2]
[420009044,1775609446366,-160.0,0.00015484,7]
[420009046,1775609446376,-529.851946,0.00015484,7]
[420009048,1775609446386,-899.703893,0.00015484,7]
[420009050,1775609446395,-538.56124698,0.000155,7]
[420009052,1775609446405,-1200.0,0.000155,5]
[420009055,1775609446415,-163.550944,0.00015513,2]
[420009056,1775609446426,-160.0,0.00015514,7]
[420009058,1775609446435,-1154.847255,0.00015514,7]
[420009061,1775609446446,-2149.69451,0.00015514,7]
[420009062,1775609446456,-168.0,0.00015526,2]
[420009064,1775609446465,-500.0,0.00015527,2]
[420009067,1775609446476,-500.0,0.00015527,2]
[420009069,1775609446487,-500.0,0.00015528,2]
[420009071,1775609446498,-2351.0,0.00015569,2]
[420009072,1775609446509,-168.0,0.00015577,2]
[420009074,1775609446519,-187.0,0.0001558,2]
[420009076,1775609446530,-500.0,0.00015583,2]
[420009078,1775609446540,-1800.0,0.000156,5]
[420009080,1775609446549,-558.31366652,0.00015611,2]
[420009082,1775609446560,-179.03,0.00015612,2]
[420009084,1775609446570,-500.0,0.00015638,2]
[420009086,1775609446580,-558.31366649,0.00015643,2]
[420009088,1775609446590,-2434.63172362,0.00015654,2]
[420009096,1775609446821,-274.2462981,0.00015654,2]
[420009097,1775609446832,-500.0,0.00015671,2]
[420009098,1775609446842,-558.31366649,0.00015675,2]
[420009099,1775609446854,-500.0,0.00015693,2]
[420009100,1775609446865,-2400.0,0.000157,5]
[420009101,1775609446876,-558.31366649,0.00015707,2]
[420009102,1775609446885,-700.0,0.00015711,2]
[420009103,1775609446897,-168.0,0.00015736,2]
[420009104,1775609446906,-558.31366649,0.00015739,2]
[420009105,1775609446916,-1280.88388878,0.00015746,2]
[420009106,1775609446926,-200.0,0.00015746,2]
[420009107,1775609446936,-255.00314013,0.00015746,2]
[420009108,1775609446946,-1129.64,0.00015753,2]
[420009109,1775609446957,-558.31366649,0.00015772,2]
[420009110,1775609446967,-3000.0,0.000158,5]
[420009111,1775609446977,-2291.0,0.000158,2]
[420009112,1775609446987,-558.31366649,0.00015804,2]
[420009113,1775609446998,-3193.701,0.00015831,2]
[420009115,1775609447009,-187.448,0.00015831,2]
[420009117,1775609447019,-558.31366649,0.00015836,2]
[420009119,1775609447030,-162.3905,0.0001584,2]
[420009121,1775609447041,-613.6777,0.0001584,2]
[420009123,1775609447052,-613.6777,0.0001584,2]
[420009125,1775609447062,-162.3905,0.0001585,2]
[420009127,1775609447071,-613.6777,0.0001585,2]
[420009128,1775609447081,-162.3905,0.0001586,2]
[420009130,1775609447091,-558.31366649,0.00015868,2]
[420009132,1775609447101,-162.3905,0.0001587,2]
[420009134,1775609447111,-500.0,0.00015872,2]
[420009136,1775609447121,-200.0,0.00015872,2]
[420009139,1775609447131,-162.3905,0.0001588,2]
[420009141,1775609447141,-5000.0,0.000159,2]
[420009143,1775609447151,-600.0,0.000159,5]
[420009145,1775609447161,-350.13090931,0.000159,2]
[420009147,1775609447175,-2358.74711241,0.000159,2]
[420009149,1775609447184,-619.04382544,0.000159,2]
[420009151,1775609447194,-210.99779365,0.000159,2]
[420009153,1775609447204,-558.31366649,0.000159,2]
[420009155,1775609447214,-1000.0,0.00015916,2]
[420009157,1775609447225,-483.0,0.0001593,2]
[420009159,1775609447235,-250.0,0.00015934,2]
[420009161,1775609447245,-200.0,0.00015936,2]
[420009163,1775609447255,-676.57818174,0.00015946,2]
[420009164,1775609447265,-500.0,0.00015973,2]
[420009166,1775609447275,-500.0,0.00015973,2]
[420009168,1775609447284,-508.06532933,0.00015973,2]
[420009171,1775609447295,-500.0,0.00015973,2]
[420009172,1775609447304,-500.0,0.00015973,2]
[420009175,1775609447315,-150.0,0.00015976,2]
[420009177,1775609447325,-5094.2435043,0.00015978,2]
[420009179,1775609447341,-1223.33499752,0.00015978,2]
[420009181,1775609447354,-2297.86000066,0.00015978,2]
[420009253,1775610159326,300.26,6.4e-05,2]
[420009254,1775610159519,300.26,6.737e-05,2]
[420009255,1775610159726,300.26,7.074e-05,2]
[420009256,1775610160928,300.26,7.411e-05,2]
[420009257,1775610161028,300.26,7.748e-05,2]
[420009258,1775610161093,300.26,8.084e-05,2]
[420009259,1775610161168,300.26,8.421e-05,2]
[420009260,1775610161242,300.26,8.758e-05,2]
[420009261,1775610161345,300.26,9.095e-05,2]
[420009262,1775610161384,300.26,9.432e-05,2]
[420009263,1775610161546,300.26,9.769e-05,2]
[420009264,1775610161594,300.26,0.00010106,2]
[420009265,1775610161811,300.26,0.00010442,2]
[420009266,1775610162030,300.26,0.00010779,2]
[420009267,1775610162231,300.26,0.00011116,2]
[420009268,1775610162667,300.26,0.00011453,2]
[420009269,1775610185138,5533.0,0.000114,5]
[420009270,1775610185177,1520.0,0.000112,3]
[420009271,1775610215714,2947.01,0.000114,5]
[420009272,1775610215740,943.99,0.000114,5]
[420009276,1775610272395,1242.47023133,0.00011659,2]
[420009290,1775610570947,6505.6,0.00011659,2]
[420009293,1775610615438,506.0,0.000107,2]
[420009295,1775610625693,-3076.67,0.0001,2]
[420009296,1775610625864,-2099.81883615,0.0001,2]
[420009297,1775610625890,-800.3723277,0.0001,2]
[420009312,1775610631861,-273.719,0.00010699,2]
[420009313,1775610631873,-226.281,0.00010699,2]
[420009314,1775610631884,-454.9629423,0.00010699,2]
[420009315,1775610631944,-45.0370577,0.00010699,2]
[420009316,1775610631954,-500.0,0.00010699,2]
[420009317,1775610631965,-193.82446763,0.00010699,2]
[420009318,1775610631977,-306.17553237,0.00010699,2]
[420009319,1775610631988,-581.31930189,0.00010699,2]
[420009320,1775610631999,-500.0,0.00010699,2]
[420009321,1775610632010,-500.0,0.00010699,2]
[420009322,1775610632020,-500.0,0.00010699,2]
[420009323,1775610632033,-500.0,0.00010699,2]
[420009324,1775610632043,-500.0,0.00010699,2]
[420009325,1775610632053,-500.0,0.00010699,2]
[420009326,1775610632064,-500.0,0.00010699,2]
[420009327,1775610632074,-152176.49337,0.000107,2]
[420009328,1775610632084,-2205.81690342,0.00011507,2]
[420009329,1775610632097,-2042.04309658,0.00011507,2]
[420009330,1775610632108,-300.26,0.0001179,2]
[420009331,1775610632118,-1200.0,0.00011873,2]
[420009332,1775610632128,-1134.78236353,0.00011874,2]
[420009333,1775610632140,-3865.21763647,0.00011874,2]
[420009334,1775610632150,-250.0,0.00011958,2]
[420009335,1775610632160,-150.0,0.0001199,2]
[420009336,1775610632170,-2752.35,0.00012022,2]
[420009337,1775610632181,-5000.0,0.00012092,2]
[420009338,1775610632191,-300.26,0.00012127,2]
[420009339,1775610632201,-8606.1,0.0001218,2]
[420009340,1775610632211,-283.39,0.00012407,2]
[420009341,1775610632221,-300.26,0.00012464,2]
[420009342,1775610632231,-10240.89751049,0.00012539,2]
[420009349,1775610632683,-500.0,0.00010699,2]
[420009350,1775610632694,-5254.48055638,0.00012539,2]
[420009351,1775610632705,-1711.23017621,0.00012539,2]
[420009352,1775610632717,-8634.52175692,0.00012539,2]
[420009353,1775610632728,-955.0,0.00012595,2]
[420009354,1775610632738,-247.19,0.00012626,2]
[420009355,1775610632748,-400.0,0.00012634,2]
[420009356,1775610632758,-400.0,0.00012641,2]
[420009357,1775610632769,-156.18,0.00012641,2]
[420009358,1775610632782,-1628.0,0.00012711,2]
[420009359,1775610632792,-850.0,0.00012737,2]
[420009360,1775610632802,-1318.0,0.00012762,2]
[420009361,1775610632812,-300.26,0.000128,2]
[420009362,1775610632823,-150.0,0.00012868,2]
[420009363,1775610632833,-23357.19080226,0.00012869,2]
[420009364,1775610632843,-200.0,0.00012909,2]
[420009365,1775610632853,-151.0,0.00012909,2]
[420009366,1775610632863,-151.0,0.00012909,2]
[420009367,1775610632873,-151.0,0.00012909,2]
[420009368,1775610632883,-151.0,0.00012909,2]
[420009369,1775610632893,-151.0,0.00012909,2]
[420009370,1775610632903,-151.0,0.00012909,2]
[420009371,1775610632912,-151.0,0.00012909,2]
[420009372,1775610632922,-173.04441609,0.00012909,2]
[420009373,1775610632932,-312.8352724,0.00012916,2]
[420009374,1775610632942,-250.0,0.00012969,2]
[420009375,1775610632953,-600.0,0.00012969,2]
[420009376,1775610632963,-193.0,0.00012969,2]
[420009377,1775610632973,-250.0,0.00012969,2]
[420009378,1775610632983,-5000.0,0.00012969,2]
[420009379,1775610632993,-600.0,0.00012969,2]
[420009380,1775610633003,-20365.93184487,0.00012999,2]
[420009381,1775610633017,-8718.13405345,0.00012999,2]
[420009382,1775610633057,-500.0,0.00010699,2]
[420009383,1775610633067,-500.0,0.00010699,2]
[420009384,1775610633078,-49.24108504,0.00010699,2]
[420009385,1775610633090,-353.98356,0.00010699,2]
[420009386,1775610633103,-96.77535496,0.00010699,2]
[420009387,1775610633113,-345.36151901,0.00012999,2]
[420009388,1775610633123,-250.0,0.00013,2]
[420009389,1775610633133,-188.37,0.00013002,2]
[420009390,1775610633143,-342.5043776,0.00013039,2]
[420009391,1775610633153,-1680.0,0.0001306,2]
[420009392,1775610633163,-283.39,0.00013096,2]
[420009393,1775610633172,-506.0,0.000131,2]
[420009394,1775610633183,-506.0,0.000131,2]
[420009395,1775610633193,-3494.55507308,0.00013116,2]
[420009396,1775610633202,-1611.13,0.00013116,2]
[420009397,1775610633211,-240.95,0.00013142,2]
[420009398,1775610633221,-23357.19080226,0.00013172,2]
[420009399,1775610633233,-615.0,0.00013296,2]
[420009400,1775610633242,-150.0,0.000133,2]
[420009401,1775610633253,-1979.71839249,0.000134,2]
[420009402,1775610633263,-3240.0,0.00013425,2]
[420009403,1775610633273,-151.0,0.0001347,2]
[420009404,1775610633284,-23357.19080226,0.00013476,2]
[420009405,1775610633293,-500.0,0.00013489,2]
[420009406,1775610633303,-169.30644855,0.00013489,2]
[420009407,1775610633314,-500.0,0.00013489,2]
[420009408,1775610633323,-183.20373134,0.00013489,2]
[420009409,1775610633333,-221.2919448,0.00013489,2]
[420009410,1775610633343,-392.9003873,0.00013489,2]
[420009411,1775610633353,-500.0,0.00013489,2]
[420009412,1775610633363,-500.0,0.00013489,2]
[420009413,1775610633373,-54762.59569678,0.0001349,2]
[420009414,1775610633386,-8067.00672546,0.0001349,2]
[420009415,1775610633399,-1216.57072602,0.0001349,2]
[420009416,1775610633411,-400.0,0.0001349,2]
[420009417,1775610633452,-638.92802125,0.00010699,2]
[420009418,1775610633462,-61.44797828,0.00010699,2]
[420009423,1775610638215,-438.55202172,0.00010699,2]
[420009424,1775610638251,-500.0,0.00010699,2]
[420009425,1775610638289,-500.0,0.00010699,2]
[420009426,1775610638326,-500.0,0.00010699,2]
[420009427,1775610638363,-500.0,0.00010699,2]
[420009428,1775610638483,-122.90595656,0.00010699,2]
[420009429,1775610638495,-377.09404344,0.00010699,2]
[420009430,1775610638505,-500.0,0.00010699,2]
[420009431,1775610638515,-500.0,0.00010699,2]
[420009432,1775610638525,-500.0,0.00010699,2]
[420009433,1775610638536,-282.31920452,0.00010699,2]
[420009434,1775610638549,-217.68079548,0.00010699,2]
[420009435,1775610638559,-468.03372676,0.00010699,2]
[420009436,1775610638572,-31.96627324,0.00010699,2]
[420009437,1775610638583,-307.21111029,0.00010699,2]
[420009438,1775610638600,-192.78888971,0.00010699,2]
[420009439,1775610638610,-38512.32046939,0.0001349,2]
[420009522,1775610640457,-50194.61178235,0.0001349,2]
[420009523,1775610640468,-2407.34612024,0.000135,7]
[420009524,1775610640478,-20571.84167676,0.00013534,2]
[420009525,1775610640489,-500.0,0.00013562,2]
[420009526,1775610640500,-1318.0,0.00013634,2]
[420009527,1775610640510,-398.0,0.00013634,2]
[420009528,1775610640521,-459.0,0.00013661,2]
[420009529,1775610640531,-500.0,0.00013698,2]
[420009530,1775610640541,-500.0,0.00013698,2]
[420009531,1775610640552,-500.0,0.00013698,2]
[420009532,1775610640562,-500.0,0.00013698,2]
[420009533,1775610640572,-500.0,0.00013698,2]
[420009534,1775610640582,-500.0,0.00013698,2]
[420009535,1775610640593,-500.0,0.00013698,2]
[420009536,1775610640603,-500.0,0.00013698,2]
[420009537,1775610640614,-500.0,0.00013698,2]
[420009538,1775610640625,-500.0,0.00013698,2]
[420009539,1775610640635,-500.0,0.00013698,2]
[420009540,1775610640645,-500.0,0.00013698,2]
[420009541,1775610640656,-500.0,0.00013698,2]
[420009542,1775610640666,-500.0,0.00013698,2]
[420009543,1775610640676,-500.0,0.00013698,2]
[420009544,1775610640686,-500.0,0.00013698,2]
[420009545,1775610640697,-500.0,0.00013698,2]
[420009546,1775610640707,-500.0,0.00013698,2]
[420009547,1775610640717,-552.93139206,0.00013698,2]
[420009548,1775610640727,-500.0,0.00013698,2]
[420009549,1775610640737,-374.53172276,0.00013698,2]
[420009550,1775610640747,-500.0,0.00013698,2]
[420009551,1775610640758,-500.0,0.00013698,2]
[420009552,1775610640768,-500.0,0.00013698,2]
[420009553,1775610640779,-500.0,0.00013698,2]
[420009554,1775610640792,-500.0,0.00013698,2]
[420009555,1775610640804,-150.0,0.00013699,2]
[420009556,1775610640814,-150.0,0.00013699,2]
[420009557,1775610640825,-150.0,0.00013699,2]
[420009558,1775610640835,-150.0,0.00013699,2]
[420009559,1775610640847,-150.0,0.00013699,2]
[420009560,1775610640858,-150.0,0.00013699,2]
[420009561,1775610640869,-200.0,0.00013699,2]
[420009562,1775610640879,-166.66,0.00013699,2]
[420009563,1775610640891,-476.08,0.00013699,2]
[420009564,1775610640901,-396.73,0.00013699,2]
[420009565,1775610640912,-330.61,0.00013699,2]
[420009566,1775610640922,-275.51,0.00013699,2]
[420009567,1775610640932,-229.59,0.00013699,2]
[420009568,1775610640943,-191.33,0.00013699,2]
[420009569,1775610640954,-159.44,0.00013699,2]
[420009570,1775610640963,-797.21,0.00013699,2]
[420009571,1775610640974,-157.52,0.00013699,2]
[420009572,1775610640984,-241.5861191,0.00013699,2]
[420009573,1775610640995,-1000.0,0.00013699,2]
[420009574,1775610641007,-20571.8416767,0.00013764,2]
[420009575,1775610641017,-23357.19080226,0.00013779,2]
[420009576,1775610641027,-283.39,0.00013786,2]
[420009577,1775610641039,-214.0,0.00013829,2]
[420009578,1775610641049,-166.66,0.00013836,2]
[420009579,1775610641059,-400.0,0.000139,5]
[420009580,1775610641069,-160.0,0.00013938,2]
[420009581,1775610641079,-1874.766816,0.00013938,2]
[420009582,1775610641089,-3589.533633,0.00013938,2]
[420009583,1775610641098,-160.0,0.00013938,7]
[420009584,1775610641108,-517.194879,0.00013938,7]
[420009585,1775610641117,-874.389758,0.00013938,7]
[420009586,1775610641127,-210.030309,0.00013938,7]
[420009587,1775610641137,-160.0,0.00013938,2]
[420009588,1775610641146,-615.259462,0.00013938,2]
[420009589,1775610641156,-1070.518924,0.00013938,2]
[420009590,1775610641166,-160.0,0.00013938,7]
[420009591,1775610641176,-150.0,0.00013973,2]
[420009592,1775610641186,-150.0,0.00013973,2]
[420009593,1775610641196,-150.0,0.00013973,2]
[420009594,1775610641206,-150.0,0.00013973,2]
[420009595,1775610641216,-150.0,0.00013973,2]
[420009596,1775610641226,-166.66,0.00013973,2]
[420009597,1775610641236,-255.0,0.00013975,2]
[420009598,1775610641246,-1000.0,0.00013979,2]
[420009599,1775610641256,-8823.34035042,0.0001399,2]
[420009600,1775610641267,-20571.8416767,0.00013993,2]
[420009601,1775610641276,-1500.0,0.00014,2]
[420009602,1775610641286,-23357.19080226,0.00014083,2]
[420009603,1775610641296,-151.0,0.00014083,2]
[420009604,1775610641307,-184.132287,0.00014083,2]
[420009605,1775610641316,-500.0,0.00014085,2]
[420009606,1775610641327,-166.66,0.0001411,2]
[420009607,1775610641337,-500.0,0.00014113,2]
[420009608,1775610641347,-151.0,0.00014114,2]
[420009609,1775610641357,-151.0,0.00014114,2]
[420009610,1775610641366,-151.0,0.00014114,2]
[420009611,1775610641376,-180.558216,0.00014114,2]
[420009612,1775610641386,-151.0,0.00014114,2]
[420009613,1775610641395,-151.0,0.00014114,2]
[420009614,1775610641406,-300.607442,0.00014114,2]
[420009615,1775610641416,-151.0,0.00014114,2]
[420009616,1775610641426,-161.328112,0.00014114,2]
[420009617,1775610641436,-232.308641,0.00014114,2]
[420009618,1775610641446,-232.075827,0.00014114,2]
[420009619,1775610641455,-232.075827,0.00014114,2]
[420009620,1775610641464,-151.0,0.00014114,2]
[420009621,1775610641474,-232.075827,0.00014114,2]
[420009622,1775610641483,-151.0,0.00014114,2]
[420009623,1775610641493,-232.075827,0.00014114,2]
[420009624,1775610641503,-151.0,0.00014114,2]
[420009625,1775610641513,-160.322266,0.00014114,2]
[420009626,1775610641524,-151.0,0.00014114,2]
[420009627,1775610641534,-151.0,0.00014114,2]
[420009628,1775610641543,-272.944677,0.00014118,7]
[420009629,1775610641553,-150.0,0.00014129,2]
[420009630,1775610641563,-150.0,0.00014129,2]
[420009631,1775610641573,-150.0,0.00014129,2]
[420009632,1775610641582,-150.0,0.00014129,2]
[420009633,1775610641592,-150.0,0.00014129,2]
[420009634,1775610641602,-150.0,0.00014129,2]
[420009635,1775610641612,-150.0,0.00014129,2]
[420009636,1775610641622,-150.0,0.00014129,2]
[420009637,1775610641632,-150.0,0.00014129,2]
[420009638,1775610641642,-150.0,0.00014129,2]
[420009639,1775610641652,-150.0,0.00014129,2]
[420009640,1775610641662,-150.0,0.00014129,2]
[420009641,1775610641672,-150.0,0.00014129,2]
[420009642,1775610641681,-150.0,0.00014129,2]
[420009643,1775610641691,-500.0,0.00014137,2]
[420009644,1775610641701,-500.0,0.00014137,2]
[420009645,1775610641712,-500.0,0.00014137,2]
[420009646,1775610641722,-513.22099072,0.00014138,2]
[420009647,1775610641731,-304.24245046,0.00014138,2]
[420009648,1775610641741,-2000.0,0.00014168,2]
[420009649,1775610641751,-150.0,0.00014175,2]
[420009650,1775610641760,-150.0,0.00014181,2]
[420009651,1775610641770,-150.0,0.00014185,2]
[420009652,1775610641780,-151.0,0.00014189,2]
[420009653,1775610641790,-151.0,0.00014189,2]
[420009654,1775610641801,-151.0,0.00014189,2]
[420009655,1775610641811,-457.963478,0.00014189,2]
[420009656,1775610641820,-457.963478,0.00014189,2]
[420009657,1775610641830,-151.0,0.00014189,2]
[420009658,1775610641840,-457.963478,0.00014189,2]
[420009659,1775610641850,-457.963478,0.00014189,2]
[420009660,1775610641861,-151.0,0.00014189,2]